[Event "*** Titled Tuesday Blitz"]
[Site "Chess.com"]
[Date "2020.04.07"]
[Round "6"]
[White "bazar-wokzal"]
[Black "KarstenHansch"]
[Result "0-1"]
[WhiteElo "2532"]
[BlackElo "2425"]
[TimeControl "180+1"]
[EndTime "14:08:22 PDT"]
[Termination "KarstenHansch won on time"]

1. e4 {[%clk 0:03:00.9]} 1... c6 {[%clk 0:03:00]} 2. d4 {[%clk 0:03:00.6]} 2...
d5 {[%clk 0:03:00.2]} 3. e5 {[%clk 0:03:00.9]} 3... Bf5 {[%clk 0:02:59.6]} 4.
Nc3 {[%clk 0:03:00.9]} 4... e6 {[%clk 0:02:59.4]} 5. g4 {[%clk 0:03:01]} 5...
Bg6 {[%clk 0:02:59.4]} 6. Be2 {[%clk 0:03:01.4]} 6... c5 {[%clk 0:02:58.9]} 7.
Be3 {[%clk 0:03:00]} 7... cxd4 {[%clk 0:02:57.5]} 8. Bxd4 {[%clk 0:02:58.6]}
8... Nc6 {[%clk 0:02:57.7]} 9. Nf3 {[%clk 0:02:58.6]} 9... Bb4 {[%clk
0:02:53.2]} 10. a3 {[%clk 0:02:54.6]} 10... Bxc3+ {[%clk 0:02:50.1]} 11. Bxc3
{[%clk 0:02:53.6]} 11... Be4 {[%clk 0:02:50.1]} 12. Rg1 {[%clk 0:02:46.6]} 12...
Bxf3 {[%clk 0:02:43.4]} 13. Bxf3 {[%clk 0:02:45.4]} 13... Qh4 {[%clk 0:02:42.5]}
14. Qd2 {[%clk 0:02:32.7]} 14... Nge7 {[%clk 0:02:38]} 15. O-O-O {[%clk
0:02:30.5]} 15... Ng6 {[%clk 0:02:37.6]} 16. Qe3 {[%clk 0:02:16.6]} 16... Qxh2
{[%clk 0:02:33.3]} 17. Rg3 {[%clk 0:02:15.8]} 17... Qh4 {[%clk 0:02:23.6]} 18.
g5 {[%clk 0:01:54.2]} 18... Qf4 {[%clk 0:02:20.4]} 19. Qxf4 {[%clk 0:01:53.3]}
19... Nxf4 {[%clk 0:02:21.3]} 20. Re1 {[%clk 0:01:40.4]} 20... O-O-O {[%clk
0:02:17.4]} 21. Bg4 {[%clk 0:01:19.6]} 21... Ng6 {[%clk 0:02:01.9]} 22. f4
{[%clk 0:01:13.4]} 22... Nce7 {[%clk 0:01:42.4]} 23. Bd2 {[%clk 0:01:09.4]}
23... Nf5 {[%clk 0:01:24.9]} 24. Bxf5 {[%clk 0:01:01.7]} 24... exf5 {[%clk
0:01:25.8]} 25. Rh1 {[%clk 0:00:59.3]} 25... h6 {[%clk 0:01:17.8]} 26. gxh6
{[%clk 0:00:57.3]} 26... Rxh6 {[%clk 0:01:14.6]} 27. Rxh6 {[%clk 0:00:57]} 27...
gxh6 {[%clk 0:01:14.8]} 28. Rh3 {[%clk 0:00:57.4]} 28... Kd7 {[%clk 0:01:11.9]}
29. Rxh6 {[%clk 0:00:53.9]} 29... Rh8 {[%clk 0:01:11.9]} 30. Rxh8 {[%clk
0:00:53.7]} 30... Nxh8 {[%clk 0:01:12.8]} 31. Be3 {[%clk 0:00:51.6]} 31... a6
{[%clk 0:01:09.8]} 32. Kd2 {[%clk 0:00:51.8]} 32... Ng6 {[%clk 0:01:09.1]} 33.
Kd3 {[%clk 0:00:48.1]} 33... Kc6 {[%clk 0:01:09.3]} 34. Kd4 {[%clk 0:00:40.9]}
34... Nf8 {[%clk 0:01:09]} 35. Kd3 {[%clk 0:00:40.1]} 35... Ne6 {[%clk
0:01:08.6]} 36. b3 {[%clk 0:00:35.2]} 36... Kb5 {[%clk 0:01:06.3]} 37. Bd2
{[%clk 0:00:29.6]} 37... Kc5 {[%clk 0:01:00.2]} 38. Ke3 {[%clk 0:00:28]} 38...
d4+ {[%clk 0:00:58.2]} 39. Kd3 {[%clk 0:00:20]} 39... Kd5 {[%clk 0:00:58.2]} 40.
b4 {[%clk 0:00:18.5]} 40... b5 {[%clk 0:00:56.3]} 41. Bc1 {[%clk 0:00:18.3]}
41... Nd8 {[%clk 0:00:53.2]} 42. Bb2 {[%clk 0:00:17.8]} 42... Nc6 {[%clk
0:00:53.2]} 43. Ba1 {[%clk 0:00:17.1]} 43... a5 {[%clk 0:00:49.8]} 44. bxa5
{[%clk 0:00:16]} 44... Nxa5 {[%clk 0:00:50.7]} 45. Bxd4 {[%clk 0:00:15.7]} 45...
Nc4 {[%clk 0:00:51]} 46. Bf2 {[%clk 0:00:12.2]} 46... Nxa3 {[%clk 0:00:50.7]}
47. Be1 {[%clk 0:00:12.1]} 47... Nc4 {[%clk 0:00:50.6]} 48. Bb4 {[%clk
0:00:11.7]} 48... Nb6 {[%clk 0:00:47.3]} 49. Bd2 {[%clk 0:00:10.7]} 49... Nd7
{[%clk 0:00:46.3]} 50. Be3 {[%clk 0:00:08.8]} 50... Nf8 {[%clk 0:00:46.1]} 51.
Bc1 {[%clk 0:00:07.8]} 51... Ne6 {[%clk 0:00:46.1]} 52. Be3 {[%clk 0:00:07.5]}
52... Ng7 {[%clk 0:00:45.9]} 53. Bc1 {[%clk 0:00:04.4]} 53... Nh5 {[%clk
0:00:46.1]} 54. Be3 {[%clk 0:00:04.2]} 54... Ng3 {[%clk 0:00:46.1]} 55. Bc1
{[%clk 0:00:04]} 55... Ne4 {[%clk 0:00:46]} 56. Be3 {[%clk 0:00:03.9]} 56... f6
{[%clk 0:00:40.9]} 57. exf6 {[%clk 0:00:02]} 57... Nxf6 {[%clk 0:00:41.8]} 58.
Bd4 {[%clk 0:00:01.2]} 58... Ng4 {[%clk 0:00:40.4]} 0-1

[Event "*** Titled Tuesday Blitz"]
[Site "Chess.com"]
[Date "2020.04.07"]
[Round "6"]
[White "jeaston1"]
[Black "floplover"]
[Result "0-1"]
[WhiteElo "2428"]
[BlackElo "2271"]
[TimeControl "180+1"]
[EndTime "14:08:22 PDT"]
[Termination "floplover won by resignation"]

1. d4 {[%clk 0:03:00.9]} 1... Nf6 {[%clk 0:02:59.6]} 2. c4 {[%clk 0:03:01.4]}
2... e6 {[%clk 0:03:00.5]} 3. Nc3 {[%clk 0:03:01.7]} 3... Bb4 {[%clk 0:03:00.2]}
4. Qc2 {[%clk 0:03:01.9]} 4... O-O {[%clk 0:02:58]} 5. Nf3 {[%clk 0:03:01.3]}
5... b6 {[%clk 0:02:54.5]} 6. e4 {[%clk 0:02:58.9]} 6... c5 {[%clk 0:02:49.5]}
7. e5 {[%clk 0:02:31.1]} 7... Ne8 {[%clk 0:02:38.3]} 8. d5 {[%clk 0:02:21.9]}
8... d6 {[%clk 0:02:35.8]} 9. Bg5 {[%clk 0:02:15.5]} 9... f6 {[%clk 0:02:26.8]}
10. exf6 {[%clk 0:02:12.7]} 10... Nxf6 {[%clk 0:02:27.7]} 11. dxe6 {[%clk
0:02:06.8]} 11... Bxe6 {[%clk 0:02:12.6]} 12. Bd3 {[%clk 0:02:04.9]} 12... h6
{[%clk 0:02:05.9]} 13. Bh4 {[%clk 0:01:36.6]} 13... Nc6 {[%clk 0:01:57.4]} 14.
O-O-O {[%clk 0:01:29.3]} 14... Bxc3 {[%clk 0:01:45.8]} 15. Qxc3 {[%clk
0:01:27.7]} 15... Qc8 {[%clk 0:01:03.5]} 16. Rhe1 {[%clk 0:01:07.2]} 16... d5
{[%clk 0:00:55.9]} 17. Bxf6 {[%clk 0:01:05.5]} 17... Rxf6 {[%clk 0:00:55]} 18.
cxd5 {[%clk 0:00:45.6]} 18... Bxd5 {[%clk 0:00:53.4]} 19. Kb1 {[%clk 0:00:34.5]}
19... Bxf3 {[%clk 0:00:46.3]} 20. gxf3 {[%clk 0:00:33.4]} 20... Nd4 {[%clk
0:00:46.8]} 21. Be4 {[%clk 0:00:29.9]} 21... Rb8 {[%clk 0:00:43.5]} 22. Qc4+
{[%clk 0:00:27.5]} 22... Kh8 {[%clk 0:00:39.3]} 23. Re3 {[%clk 0:00:21.2]} 23...
Qe6 {[%clk 0:00:35.5]} 24. Qa4 {[%clk 0:00:14.4]} 24... Qf7 {[%clk 0:00:34.8]}
25. Qa6 {[%clk 0:00:04.9]} 25... Re8 {[%clk 0:00:33.9]} 26. Bd5 {[%clk
0:00:03.3]} 26... Qf8 {[%clk 0:00:30]} 27. Be4 {[%clk 0:00:03.1]} 27... Re7
{[%clk 0:00:29]} 28. Qd3 {[%clk 0:00:03.4]} 28... Qe8 {[%clk 0:00:24.7]} 29.
Rde1 {[%clk 0:00:03.8]} 29... Rfe6 {[%clk 0:00:23.3]} 30. f4 {[%clk 0:00:02.8]}
30... Qf7 {[%clk 0:00:18]} 31. f5 {[%clk 0:00:03.7]} 31... Rd6 {[%clk
0:00:17.9]} 32. Qa3 {[%clk 0:00:02.9]} 32... a5 {[%clk 0:00:17.2]} 33. Bd3
{[%clk 0:00:02.9]} 33... Rxe3 {[%clk 0:00:15.7]} 34. fxe3 {[%clk 0:00:03.8]}
34... Nc6 {[%clk 0:00:14.4]} 35. Bc2 {[%clk 0:00:03.1]} 35... Ne5 {[%clk
0:00:11.8]} 36. Qc3 {[%clk 0:00:03.6]} 36... Qd5 {[%clk 0:00:09.9]} 37. e4
{[%clk 0:00:03.3]} 37... Qd4 {[%clk 0:00:09.8]} 38. Qxd4 {[%clk 0:00:03]} 38...
Rxd4 {[%clk 0:00:10.7]} 39. Bd1 {[%clk 0:00:02.1]} 39... Nc4 {[%clk 0:00:10.8]}
40. Bc2 {[%clk 0:00:02.3]} 40... Rd2 {[%clk 0:00:10.7]} 41. Kc1 {[%clk
0:00:03.2]} 41... Rxh2 {[%clk 0:00:10.6]} 42. Rd1 {[%clk 0:00:04.1]} 42... Ne3
{[%clk 0:00:09.6]} 43. e5 {[%clk 0:00:04.2]} 43... Rxc2+ {[%clk 0:00:08.7]} 44.
Kb1 {[%clk 0:00:04.6]} 44... Rf2 {[%clk 0:00:09.6]} 45. Rd8+ {[%clk 0:00:05.1]}
45... Kh7 {[%clk 0:00:09.3]} 46. a3 {[%clk 0:00:06]} 46... Nxf5 {[%clk
0:00:09.4]} 47. e6 {[%clk 0:00:06.9]} 47... Re2 {[%clk 0:00:09.1]} 48. Rb8
{[%clk 0:00:06.8]} 48... Rxe6 {[%clk 0:00:08.4]} 0-1

[Event "*** Titled Tuesday Blitz"]
[Site "Chess.com"]
[Date "2020.04.07"]
[Round "6"]
[White "david_gomez"]
[Black "imdarealist"]
[Result "1-0"]
[WhiteElo "2436"]
[BlackElo "2225"]
[TimeControl "180+1"]
[EndTime "14:08:22 PDT"]
[Termination "david_gomez won on time"]

1. e4 {[%clk 0:03:00.9]} 1... e5 {[%clk 0:02:59.3]} 2. Nf3 {[%clk 0:02:59.2]}
2... Nf6 {[%clk 0:02:59.1]} 3. d4 {[%clk 0:02:58.3]} 3... Nxe4 {[%clk
0:02:57.7]} 4. Bd3 {[%clk 0:02:58]} 4... Nc6 {[%clk 0:02:57.7]} 5. Bxe4 {[%clk
0:02:56.7]} 5... d5 {[%clk 0:02:57.4]} 6. dxe5 {[%clk 0:02:52.9]} 6... dxe4
{[%clk 0:02:53.7]} 7. Qxd8+ {[%clk 0:02:52.8]} 7... Nxd8 {[%clk 0:02:39]} 8. Ng5
{[%clk 0:02:52.6]} 8... Bf5 {[%clk 0:02:29.2]} 9. Nc3 {[%clk 0:02:41.4]} 9...
Bb4 {[%clk 0:02:25.3]} 10. Bd2 {[%clk 0:02:41.4]} 10... Bxc3 {[%clk 0:02:21.8]}
11. Bxc3 {[%clk 0:02:40.6]} 11... h6 {[%clk 0:01:50.6]} 12. Nh3 {[%clk
0:02:36.1]} 12... Bxh3 {[%clk 0:01:50.4]} 13. gxh3 {[%clk 0:02:35.8]} 13... Ne6
{[%clk 0:01:51.3]} 14. Rg1 {[%clk 0:02:34.6]} 14... Ng5 {[%clk 0:01:22.8]} 15.
O-O-O {[%clk 0:02:28.3]} 15... Rd8 {[%clk 0:01:09.4]} 16. Rxd8+ {[%clk
0:02:24.4]} 16... Kxd8 {[%clk 0:01:10.3]} 17. h4 {[%clk 0:02:24.6]} 17... Ne6
{[%clk 0:01:08.2]} 18. Rg4 {[%clk 0:02:24.2]} 18... e3 {[%clk 0:01:06.7]} 19.
fxe3 {[%clk 0:02:19.5]} 19... g5 {[%clk 0:00:56.2]} 20. Kd2 {[%clk 0:02:00.5]}
20... h5 {[%clk 0:00:51.5]} 21. Ra4 {[%clk 0:01:58.6]} 21... a6 {[%clk 0:00:45]}
22. hxg5 {[%clk 0:01:58.6]} 22... Nxg5 {[%clk 0:00:44]} 23. e6 {[%clk
0:01:57.3]} 23... Rh6 {[%clk 0:00:30.1]} 24. Rd4+ {[%clk 0:01:38.7]} 24... Ke8
{[%clk 0:00:25.6]} 25. exf7+ {[%clk 0:01:33.6]} 25... Nxf7 {[%clk 0:00:26.5]}
26. Re4+ {[%clk 0:01:29.8]} 26... Kd7 {[%clk 0:00:25.1]} 27. Rf4 {[%clk
0:01:26.2]} 27... Nd6 {[%clk 0:00:22.3]} 28. b3 {[%clk 0:01:20.4]} 28... Rg6
{[%clk 0:00:20.7]} 29. h4 {[%clk 0:01:13.4]} 29... Rg2+ {[%clk 0:00:20.1]} 30.
Kd3 {[%clk 0:01:11.7]} 30... Rh2 {[%clk 0:00:12.1]} 31. a4 {[%clk 0:01:09.6]}
31... b6 {[%clk 0:00:11.1]} 32. e4 {[%clk 0:01:04.4]} 32... a5 {[%clk
0:00:10.1]} 33. e5 {[%clk 0:01:03.7]} 33... Nb7 {[%clk 0:00:10.4]} 34. Rf7+
{[%clk 0:01:02.1]} 34... Kc6 {[%clk 0:00:09]} 35. Rf4 {[%clk 0:00:50]} 35...
Rh3+ {[%clk 0:00:09]} 36. Kd2 {[%clk 0:00:47.1]} 36... Nc5 {[%clk 0:00:08.9]}
37. Bd4 {[%clk 0:00:44.1]} 37... Ne6 {[%clk 0:00:07.9]} 38. Rf6 {[%clk
0:00:34.7]} 38... Kd5 {[%clk 0:00:05]} 39. Bf2 {[%clk 0:00:27.2]} 39... Kxe5
{[%clk 0:00:03.1]} 40. Rh6 {[%clk 0:00:25.4]} 40... Rh2 {[%clk 0:00:03.2]} 41.
Ke3 {[%clk 0:00:20.3]} 41... Nf4 {[%clk 0:00:02.2]} 42. Bg3 {[%clk 0:00:18.9]}
42... Rh3 {[%clk 0:00:02.4]} 43. Rxh5+ {[%clk 0:00:16.9]} 1-0

[Event "*** Titled Tuesday Blitz"]
[Site "Chess.com"]
[Date "2020.04.07"]
[Round "6"]
[White "Dare-Dare"]
[Black "kleopl"]
[Result "1-0"]
[WhiteElo "2174"]
[BlackElo "2382"]
[TimeControl "180+1"]
[EndTime "14:08:23 PDT"]
[Termination "Dare-Dare won by resignation"]

1. Nf3 {[%clk 0:03:00.9]} 1... Nf6 {[%clk 0:02:59]} 2. c4 {[%clk 0:03:01.8]}
2... g6 {[%clk 0:02:57.6]} 3. Nc3 {[%clk 0:03:02.1]} 3... Bg7 {[%clk 0:02:57.3]}
4. e4 {[%clk 0:03:02.6]} 4... c5 {[%clk 0:02:53.3]} 5. d4 {[%clk 0:03:01.6]}
5... cxd4 {[%clk 0:02:53.1]} 6. Nxd4 {[%clk 0:03:02.5]} 6... d6 {[%clk
0:02:46.3]} 7. f3 {[%clk 0:02:59.1]} 7... O-O {[%clk 0:02:45.8]} 8. Be3 {[%clk
0:02:58.9]} 8... Nc6 {[%clk 0:02:45.2]} 9. Be2 {[%clk 0:02:59.1]} 9... a5 {[%clk
0:02:43.2]} 10. O-O {[%clk 0:02:58.7]} 10... Bd7 {[%clk 0:02:40.8]} 11. Rc1
{[%clk 0:02:56.1]} 11... a4 {[%clk 0:02:39.6]} 12. Nd5 {[%clk 0:02:51.8]} 12...
Re8 {[%clk 0:02:35.3]} 13. Qd2 {[%clk 0:02:47.7]} 13... Nxd5 {[%clk 0:02:13.2]}
14. exd5 {[%clk 0:02:46.5]} 14... Nxd4 {[%clk 0:01:59.4]} 15. Bxd4 {[%clk
0:02:47.4]} 15... Qa5 {[%clk 0:01:59.5]} 16. Qe3 {[%clk 0:02:12.3]} 16... e5
{[%clk 0:01:49]} 17. Bc3 {[%clk 0:02:07.9]} 17... Qc7 {[%clk 0:01:43.3]} 18. b4
{[%clk 0:02:02.6]} 18... axb3 {[%clk 0:01:41.5]} 19. axb3 {[%clk 0:02:02.8]}
19... f5 {[%clk 0:01:38.2]} 20. b4 {[%clk 0:01:59.5]} 20... Ra3 {[%clk 0:01:32]}
21. Ra1 {[%clk 0:01:57.1]} 21... Rea8 {[%clk 0:01:31.5]} 22. Rxa3 {[%clk
0:01:54.2]} 22... Rxa3 {[%clk 0:01:32.4]} 23. Ra1 {[%clk 0:01:53.5]} 23... f4
{[%clk 0:01:12]} 24. Qc1 {[%clk 0:01:48.1]} 24... Qb6+ {[%clk 0:01:04.9]} 25.
Kf1 {[%clk 0:01:47.4]} 25... Rxa1 {[%clk 0:00:59.8]} 26. Qxa1 {[%clk 0:01:48.3]}
26... h5 {[%clk 0:00:56.8]} 27. Bd3 {[%clk 0:01:43.7]} 27... Kh7 {[%clk
0:00:37.5]} 28. Qb1 {[%clk 0:01:43]} 28... Be8 {[%clk 0:00:37.2]} 29. Qc2 {[%clk
0:01:39]} 29... Qe3 {[%clk 0:00:36.1]} 30. Bd2 {[%clk 0:01:39]} 30... Qd4 {[%clk
0:00:36.3]} 31. Bc3 {[%clk 0:01:38.8]} 31... Qe3 {[%clk 0:00:36.5]} 32. Bd2
{[%clk 0:01:35.8]} 32... Qa7 {[%clk 0:00:36.1]} 33. c5 {[%clk 0:01:32.9]} 33...
dxc5 {[%clk 0:00:33]} 34. bxc5 {[%clk 0:01:33.8]} 34... Qa1+ {[%clk 0:00:31.5]}
35. Qb1 {[%clk 0:01:25.9]} 35... Qd4 {[%clk 0:00:29.3]} 36. Qb3 {[%clk
0:00:54.4]} 36... Qxc5 {[%clk 0:00:27.7]} 37. Qxb7 {[%clk 0:00:54.4]} 37... Qd4
{[%clk 0:00:18.7]} 38. Qb3 {[%clk 0:00:53.7]} 38... Ba4 {[%clk 0:00:17.4]} 39.
Qc3 {[%clk 0:00:51.7]} 39... Qxc3 {[%clk 0:00:16.2]} 40. Bxc3 {[%clk 0:00:51.8]}
40... e4 {[%clk 0:00:14.2]} 41. Bxg7 {[%clk 0:00:50.7]} 41... exd3 {[%clk
0:00:14.3]} 42. Bc3 {[%clk 0:00:46.7]} 42... Kg8 {[%clk 0:00:13.6]} 43. Ke1
{[%clk 0:00:46.8]} 43... Kf7 {[%clk 0:00:13.4]} 44. Kd2 {[%clk 0:00:47.5]} 44...
Bc2 {[%clk 0:00:13.4]} 45. Be5 {[%clk 0:00:47.2]} 45... Ke7 {[%clk 0:00:13.2]}
46. Bxf4 {[%clk 0:00:47.2]} 46... Kd7 {[%clk 0:00:13.4]} 47. g4 {[%clk
0:00:45.7]} 47... hxg4 {[%clk 0:00:11.9]} 48. fxg4 {[%clk 0:00:46]} 48... Bb3
{[%clk 0:00:11.8]} 49. d6 {[%clk 0:00:42.5]} 49... Be6 {[%clk 0:00:11.5]} 50. h3
{[%clk 0:00:38.4]} 50... Bc4 {[%clk 0:00:09.5]} 51. Kc3 {[%clk 0:00:36.3]} 51...
Ba6 {[%clk 0:00:08.6]} 52. h4 {[%clk 0:00:36.2]} 52... Ke6 {[%clk 0:00:08.9]}
53. h5 {[%clk 0:00:35.3]} 53... gxh5 {[%clk 0:00:08.8]} 54. gxh5 {[%clk
0:00:35.9]} 54... Bc8 {[%clk 0:00:09]} 55. h6 {[%clk 0:00:35.7]} 55... Kf6
{[%clk 0:00:08.9]} 56. Kxd3 {[%clk 0:00:35.6]} 56... Kg6 {[%clk 0:00:09.2]} 57.
Kd4 {[%clk 0:00:35.3]} 57... Kh7 {[%clk 0:00:08.6]} 58. Kc5 {[%clk 0:00:35.3]}
58... Bd7 {[%clk 0:00:08.8]} 59. Kb6 {[%clk 0:00:35.6]} 59... Kg6 {[%clk
0:00:09.1]} 60. Kc7 {[%clk 0:00:35.8]} 60... Bf5 {[%clk 0:00:08.4]} 61. d7
{[%clk 0:00:36.2]} 61... Bxd7 {[%clk 0:00:07.7]} 62. Kxd7 {[%clk 0:00:37.1]} 1-0

[Event "*** Titled Tuesday Blitz"]
[Site "Chess.com"]
[Date "2020.04.07"]
[Round "6"]
[White "Gennady_Kozlov"]
[Black "OK97"]
[Result "0-1"]
[WhiteElo "2594"]
[BlackElo "2754"]
[TimeControl "180+1"]
[EndTime "14:08:24 PDT"]
[Termination "OK97 won by resignation"]

1. b3 {[%clk 0:03:00.9]} 1... e5 {[%clk 0:02:59.2]} 2. Bb2 {[%clk 0:03:01.8]}
2... Nc6 {[%clk 0:02:59.2]} 3. e3 {[%clk 0:03:02.3]} 3... d5 {[%clk 0:02:50.9]}
4. Bb5 {[%clk 0:02:58.8]} 4... Bd6 {[%clk 0:02:51.3]} 5. f4 {[%clk 0:02:54.3]}
5... f6 {[%clk 0:02:48.3]} 6. Nh3 {[%clk 0:02:52.6]} 6... Nh6 {[%clk 0:02:47.5]}
7. Qh5+ {[%clk 0:02:49.8]} 7... Nf7 {[%clk 0:02:47.1]} 8. fxe5 {[%clk
0:02:49.1]} 8... fxe5 {[%clk 0:02:28.6]} 9. O-O {[%clk 0:02:47.1]} 9... Be6
{[%clk 0:02:14.3]} 10. Nc3 {[%clk 0:02:32.6]} 10... O-O {[%clk 0:02:10.5]} 11.
Bd3 {[%clk 0:02:24]} 11... Nh6 {[%clk 0:01:33.5]} 12. Ng5 {[%clk 0:02:14.7]}
12... Bg4 {[%clk 0:01:32.9]} 13. Bxh7+ {[%clk 0:02:09.8]} 13... Kh8 {[%clk
0:01:33.3]} 14. Qg6 {[%clk 0:02:07.9]} 14... Bf5 {[%clk 0:01:19]} 15. Rxf5
{[%clk 0:02:04.2]} 15... Rxf5 {[%clk 0:01:19.1]} 16. Nf3 {[%clk 0:01:51]} 16...
Ne7 {[%clk 0:01:11.6]} 17. Qe6 {[%clk 0:01:43]} 17... Kxh7 {[%clk 0:01:09.9]}
18. Nxd5 {[%clk 0:01:43.5]} 18... Qg8 {[%clk 0:00:44.2]} 19. Qxg8+ {[%clk
0:01:42]} 19... Nhxg8 {[%clk 0:00:43.2]} 20. e4 {[%clk 0:01:42.4]} 20... Rff8
{[%clk 0:00:36.9]} 21. Nxe7 {[%clk 0:01:37.3]} 21... Nxe7 {[%clk 0:00:33.5]} 22.
Bxe5 {[%clk 0:01:25.7]} 22... Bxe5 {[%clk 0:00:28.2]} 23. Nxe5 {[%clk
0:01:26.6]} 23... Rad8 {[%clk 0:00:28.7]} 24. d3 {[%clk 0:01:25.5]} 24... Ng6
{[%clk 0:00:29.2]} 25. Nf3 {[%clk 0:01:24.9]} 25... Nf4 {[%clk 0:00:29.4]} 26.
Kf2 {[%clk 0:01:21.4]} 26... c5 {[%clk 0:00:28.2]} 27. g3 {[%clk 0:01:20.7]}
27... Ne6 {[%clk 0:00:28.4]} 28. Ke3 {[%clk 0:01:20.5]} 28... g5 {[%clk
0:00:26.6]} 29. c3 {[%clk 0:01:17.4]} 29... g4 {[%clk 0:00:25]} 30. Ne5 {[%clk
0:01:17.3]} 30... Ng5 {[%clk 0:00:22.7]} 31. Rd1 {[%clk 0:01:11.5]} 31... b5
{[%clk 0:00:17.7]} 32. d4 {[%clk 0:01:09.6]} 32... cxd4+ {[%clk 0:00:18.5]} 33.
cxd4 {[%clk 0:01:08.9]} 33... Rc8 {[%clk 0:00:18.9]} 34. d5 {[%clk 0:01:07.2]}
34... Nf3 {[%clk 0:00:15.7]} 35. Nxg4 {[%clk 0:01:03.5]} 35... Rc3+ {[%clk
0:00:15.7]} 36. Ke2 {[%clk 0:01:04]} 36... Rc2+ {[%clk 0:00:12.3]} 37. Ke3
{[%clk 0:01:02]} 37... Rc3+ {[%clk 0:00:12.4]} 38. Ke2 {[%clk 0:01:01.9]} 38...
Ng5 {[%clk 0:00:10.9]} 39. e5 {[%clk 0:00:59.3]} 39... Rc2+ {[%clk 0:00:10.8]}
40. Kd3 {[%clk 0:00:58.7]} 40... Rxa2 {[%clk 0:00:06.8]} 41. e6 {[%clk 0:00:56]}
41... Rd8 {[%clk 0:00:04.9]} 42. Ke3 {[%clk 0:00:53.4]} 42... Nxe6 {[%clk
0:00:04]} 43. Nf6+ {[%clk 0:00:52.4]} 43... Kg6 {[%clk 0:00:03.4]} 44. Ne4
{[%clk 0:00:51.7]} 44... Ng7 {[%clk 0:00:02.9]} 45. d6 {[%clk 0:00:50.5]} 45...
Re8 {[%clk 0:00:03.4]} 46. d7 {[%clk 0:00:49.1]} 46... Nf5+ {[%clk 0:00:03.9]}
47. Kf4 {[%clk 0:00:48.8]} 47... Rd8 {[%clk 0:00:04.8]} 48. g4 {[%clk
0:00:47.8]} 48... Ng7 {[%clk 0:00:04.8]} 49. Rd6+ {[%clk 0:00:46.6]} 49... Kf7
{[%clk 0:00:04.9]} 50. g5 {[%clk 0:00:46.7]} 50... Ne6+ {[%clk 0:00:04.9]} 51.
Ke5 {[%clk 0:00:46.1]} 51... Nf8 {[%clk 0:00:05.8]} 52. Rf6+ {[%clk 0:00:22.3]}
52... Ke7 {[%clk 0:00:05.8]} 53. g6 {[%clk 0:00:22.6]} 53... Nxd7+ {[%clk
0:00:06]} 54. Kf5 {[%clk 0:00:20.2]} 54... Nxf6 {[%clk 0:00:06.3]} 0-1

[Event "*** Titled Tuesday Blitz"]
[Site "Chess.com"]
[Date "2020.04.07"]
[Round "6"]
[White "SanchezKelvin"]
[Black "gmkomarov"]
[Result "0-1"]
[WhiteElo "2328"]
[BlackElo "2509"]
[TimeControl "180+1"]
[EndTime "14:08:25 PDT"]
[Termination "gmkomarov won by resignation"]

1. d4 {[%clk 0:03:00.9]} 1... Nf6 {[%clk 0:02:58.8]} 2. c4 {[%clk 0:03:00.7]}
2... e6 {[%clk 0:02:58.8]} 3. Nf3 {[%clk 0:03:00.6]} 3... b6 {[%clk 0:02:58.9]}
4. g3 {[%clk 0:03:00.4]} 4... Bb4+ {[%clk 0:02:58.8]} 5. Nbd2 {[%clk 0:02:59.3]}
5... Bb7 {[%clk 0:02:57.3]} 6. Bg2 {[%clk 0:02:59.3]} 6... O-O {[%clk
0:02:57.3]} 7. O-O {[%clk 0:02:59]} 7... Re8 {[%clk 0:02:57.3]} 8. Qc2 {[%clk
0:02:58.6]} 8... d5 {[%clk 0:02:54.6]} 9. Nb3 {[%clk 0:02:53.1]} 9... Bf8 {[%clk
0:02:51.9]} 10. Bf4 {[%clk 0:02:50.5]} 10... Na6 {[%clk 0:02:49.9]} 11. Rac1
{[%clk 0:02:45.8]} 11... c5 {[%clk 0:02:43.8]} 12. dxc5 {[%clk 0:02:37.9]} 12...
bxc5 {[%clk 0:02:41]} 13. cxd5 {[%clk 0:02:32.6]} 13... exd5 {[%clk 0:02:39.9]}
14. Rfd1 {[%clk 0:02:30.6]} 14... Nb4 {[%clk 0:02:38.9]} 15. Qb1 {[%clk
0:02:25.5]} 15... Rxe2 {[%clk 0:02:34.6]} 16. Nxc5 {[%clk 0:02:19.6]} 16... Bxc5
{[%clk 0:02:33.6]} 17. Rxc5 {[%clk 0:02:20.5]} 17... Rxf2 {[%clk 0:02:32.5]} 18.
Kxf2 {[%clk 0:02:16.2]} 18... Qb6 {[%clk 0:02:06.2]} 19. Rc1 {[%clk 0:01:58]}
19... Ne4+ {[%clk 0:02:03.6]} 20. Kg1 {[%clk 0:01:56.5]} 20... Nxc5 {[%clk
0:02:01.5]} 21. Be3 {[%clk 0:01:56.1]} 21... Rc8 {[%clk 0:01:47.8]} 22. a3
{[%clk 0:01:55.6]} 22... Nbd3 {[%clk 0:01:35.5]} 23. Rc3 {[%clk 0:01:43.5]}
23... Ba6 {[%clk 0:01:07.2]} 24. b4 {[%clk 0:01:23.9]} 24... Qe6 {[%clk
0:01:05.5]} 25. Bxc5 {[%clk 0:01:14.7]} 25... Rxc5 {[%clk 0:01:04.3]} 26. Rxd3
{[%clk 0:01:09.2]} 26... Bxd3 {[%clk 0:01:03]} 27. Qxd3 {[%clk 0:01:09.1]} 27...
Rc1+ {[%clk 0:01:02.5]} 28. Bf1 {[%clk 0:01:09.2]} 28... Qe4 {[%clk 0:00:52.8]}
29. Qxe4 {[%clk 0:00:49.1]} 29... dxe4 {[%clk 0:00:52.2]} 30. Nd4 {[%clk
0:00:49.1]} 30... e3 {[%clk 0:00:49.7]} 31. Kg2 {[%clk 0:00:46.1]} 31... Ra1
{[%clk 0:00:47.4]} 32. Be2 {[%clk 0:00:41.6]} 32... Rxa3 {[%clk 0:00:44]} 33.
Kf3 {[%clk 0:00:41.5]} 33... Ra4 {[%clk 0:00:37.3]} 34. Nc2 {[%clk 0:00:40.7]}
34... Ra2 {[%clk 0:00:27.5]} 35. Nxe3 {[%clk 0:00:39]} 35... a6 {[%clk
0:00:26.5]} 36. h4 {[%clk 0:00:37.6]} 36... Rb2 {[%clk 0:00:25.2]} 37. Nd5
{[%clk 0:00:37]} 37... Ra2 {[%clk 0:00:19.9]} 38. Bc4 {[%clk 0:00:30.5]} 38...
Rc2 {[%clk 0:00:18.6]} 39. Bd3 {[%clk 0:00:26.5]} 39... Ra2 {[%clk 0:00:17.6]}
40. Bc4 {[%clk 0:00:26.1]} 40... Ra3+ {[%clk 0:00:17.9]} 41. Kf4 {[%clk
0:00:25.4]} 41... g6 {[%clk 0:00:18.1]} 42. Be2 {[%clk 0:00:16.2]} 42... Kg7
{[%clk 0:00:17.7]} 43. Nc7 {[%clk 0:00:16]} 43... a5 {[%clk 0:00:16.8]} 44. bxa5
{[%clk 0:00:15.9]} 44... Rxa5 {[%clk 0:00:15.6]} 45. Nb5 {[%clk 0:00:16.8]}
45... Ra4+ {[%clk 0:00:15]} 46. Kf3 {[%clk 0:00:16.4]} 46... h5 {[%clk
0:00:15.4]} 47. Nc3 {[%clk 0:00:16.2]} 47... Ra3 {[%clk 0:00:15.5]} 0-1